Cogmind - Beta 13 @@@ ROGUE MODE // 2024.03.24 @ 20:44:07 Player: Ether Result: Destroyed by as-69862 with Assembled Rifle Performance ------------- Evolutions (0) 0 Regions Visited (0) 0 Robots Destroyed (3) 15 Value Destroyed (14) 14 Prototype IDs (0) 0 Alien Tech Used (0) 0 Bonus (0) 0 TOTAL SCORE: 29 Bonus ------- None Cogmind --------- Core Integrity 0/250 Matter 283/300 Energy 99/100 System Corruption 1% Temperature Cool (20) Movement Core (100) Ox1 Location -11/Scrapyard Parts ------- > --- POWER (1) -------- (None) > --- PROPULSION (2) --- (None) > --- UTILITY (2) ------ Small Storage Unit > --- WEAPON (2) ------- (None) > --- INVENTORY (8) ---- Ion Engine Light Ion Engine Light Treads Light Treads Small Laser Peak State ------------ > --- POWER ------------ Ion Engine > --- PROPULSION ------- Aluminum Leg Aluminum Leg > --- UTILITY ---------- Small Storage Unit Improved Terrain Scanner > --- WEAPON ----------- Assault Rifle Assault Rifle > --- INVENTORY -------- Ion Engine Light Treads Small Laser [Rating: 9] Favorites ----------- Power Ion Engine Engine Ion Engine Propulsion Aluminum Leg Leg Aluminum Leg Utility Small Storage Unit Device Improved Terrain Scanner Storage Small Storage Unit Weapon Assault Rifle Energy Gun Small Laser Ballistic Gun Assault Rifle Build | -11 ------- Run | Yrd Slots Evolved . | . Power . | . Propulsion . | . Utility . | . Weapon . | . Parts Attached 8 | 8 Power 1 | 1 Engine 1 | 1 Core . | . Reactor . | . Propulsion 2 | 2 Treads . | . Leg 2 | 2 Wheel . | . Hover . | . Flight . | . Utility 2 | 2 Device 1 | 1 Storage 1 | 1 Processor . | . Hackware . | . Protection . | . Artifact . | . Weapon 3 | 3 Energy Gun 1 | 1 Energy Cannon . | . Ballistic Gun 2 | 2 Ballistic Cannon . | . Launcher . | . Special Weapon . | . Impact Weapon . | . Slashing Weapon . | . Piercing Weapon . | . Special Melee Weapon . | . Unidentified Prototypes . | . Parts Lost 5 | 5 Power 1 | 1 Propulsion 2 | 2 Utility 1 | 1 Weapon 1 | 1 Highest Loss Streak 5 | 5 To Critical Strikes . | . Average Slot Usage (%) . | . Naked Turns . | . Heaviest Build 15 | 15 Greatest Support 20 | 20 Greatest Overweight (x) 3 | 3 Average Overweight (x) . | . Largest Inventory Capacity 8 | 8 Average Capacity 7 | 7 Most Carried 7 | 7 Average Carried 4 | 4 Final Capacity 8 | 8 Final Carried 5 | 5 Class Distribution -------------------- None Dominant Class ---------------- None Resources | -11 ----------- Run | Yrd Matter Collected 322 | 322 Remotely . | . Salvage Created 188 | 188 Parts 7 | 7 Haulers Intercepted . | . Recyclers Shooed . | . Parts Field Recycled . | . Retrieved Matter . | . Parts Self-Destructed . | . Prevented . | . Kills | -11 ------- Run | Yrd Combat Hostiles Destroyed 4 | 4 Guns 4 | 4 Classes Destroyed 4 | 4 Worker 1 | 1 Tunneler 1 | 1 Recycler 1 | 1 Assembled 4 | 4 Best Kill Streak 4 | 4 Combat Bots Only 4 | 4 Max Kills in Single Turn 1 | 1 Gunslinging . | . Exploded . | . Melee . | . Uniques/NPCs Destroyed . | . Combat | -11 -------- Run | Yrd Hostile Shots Fired 88 | 88 Missed 30 | 30 Damage Taken 818 | 818 Core 261 | 261 Absorbed by Shields . | . Core Remaining (%) . | . Volleys Fired 15 | 15 Largest 2 | 2 Hottest 40 | 40 Shots Fired 28 | 28 Gun 28 | 28 Cannon . | . Launcher . | . Special . | . Kinetic 28 | 28 Thermal . | . Explosive . | . Electromagnetic . | . Robot Hit Streak 7 | 7 Robot Miss Streak 3 | 3 Penetration Max . | . Secondary Targets 2 | 2 Max Gunslinging Chain 1 | 1 Shots Hit Robots 19 | 19 Core Hits 13 | 13 Critical Kills . | . Critical Parts Destroyed 2 | 2 Critical Strikes 2 | 2 Destroy 2 | 2 Melee Attacks . | . Impact . | . Slashing . | . Piercing . | . Sneak Attacks . | . Combat Hostiles . | . Follow-up Attacks . | . Damage Inflicted 290 | 290 Guns 290 | 290 Cannons . | . Explosions . | . Melee . | . Ramming . | . Kinetic 290 | 290 Thermal . | . Explosive . | . Electromagnetic . | . Impact . | . Slashing . | . Piercing . | . Highest Corruption 1 | 1 Average Corruption 1 | 1 Corruption Purged . | . Corruption Blocked . | . Overload Shots . | . Overflow Damage . | . Projectiles . | . Explosions . | . Melee . | . Knockbacks . | . Impact . | . Kinetic . | . Secondary . | . Self-Inflicted Damage . | . Shots . | . Rammed . | . Targets Rammed . | . Kicked . | . Crushed . | . Highest Temperature 26 | 26 Average Temperature 11 | 11 Received Heat Transfer 160 | 160 Siege Activations . | . Robots Corrupted . | . Combat Hostiles . | . Parts Fried . | . Impact Corruptions . | . Robots Melted . | . Combat Hostiles . | . Parts Melted . | . Heat Transferred . | . Parts Sabotaged . | . Parts Stolen . | . Parts Stripped . | . Power Chain Reactions . | . Alert | -11 ------- Run | Yrd Peak Influence 10 | 10 Initial . | . Average 1 | 1 Maximum Alert Level . | . Low Security (%) 100 | 100 Level 1 . | . Level 2 . | . Level 3 . | . Level 4 . | . Level 5 . | . High Security . | . Max Security . | . Squads Dispatched . | . Investigation . | . Extermination . | . Reinforcement . | . Assault . | . Garrison . | . Intercept . | . Searches Triggered . | . Construction Impeded . | . Haulers Reinforced . | . Active Scanning Responses . | . Cargo Convoy Interrupts . | . Stealth | -11 --------- Run | Yrd Distress Signals . | . Communications Jammed . | . Distress Signals . | . Times Spotted 19 | 19 Peak Tracking Total 15 | 15 Tactical Retreats . | . Traps | -11 ------- Run | Yrd Traps Triggered . | . Indirectly . | . Trap Hack Attempts . | . Triggered . | . Disarmed . | . Reprogrammed . | . Reused . | . Traps Extracted . | . Installed . | . Triggered . | . Machines | -11 ---------- Run | Yrd Machines Disabled . | . Max in Single Turn . | . Machines Repaired . | . Machines Dismantled . | . Machines Sabotaged . | . Overloaded Fab Kills . | . Hacking | -11 --------- Run | Yrd Machines Accessed . | . Terminals . | . Fabricators . | . Repair Stations . | . Recycling Units . | . Scanalyzers . | . Garrison Access . | . Total Hacks . | . Successful . | . Failed . | . Catastrophic . | . Database Lockouts . | . Manual . | . Terminals . | . Fabricators . | . Repair Stations . | . Recycling Units . | . Scanalyzers . | . Garrison Access . | . Terminal Hacks . | . Fabricator Hacks . | . Repair Station Hacks . | . Recycling Unit Hacks . | . Scanalyzer . | . Garrison Access Hacks . | . Unauthorized Hacks . | . Terminals . | . Fabricators . | . Repair Stations . | . Recycling Units . | . Scanalyzers . | . Garrison Access . | . Data Cores Recovered . | . Used . | . Hacking Detections . | . Full Trace Events . | . Feedback Events . | . Feedback Blocked . | . Robot Schematics Acquired . | . Robots Built . | . Authchips . | . Time . | . Total Robot Build Rating . | . Part Schematics Acquired . | . Parts Built . | . Authchips . | . Time . | . Total Part Build Rating . | . Parts Repaired . | . Time . | . Parts Recycled . | . Recycled Matter . | . Retrieved Matter . | . Retrieved Components . | . Parts Scanalyzed . | . Part Schematics Acquired . | . Parts Damaged . | . Bothacking | -11 ------------ Run | Yrd Used RIF Installer . | . Robots Hacked . | . Non-combat . | . Combat . | . Robot Hacks Applied . | . Relay Couplers Released . | . Fabnet Peak Effective % . | . Robots Rewired . | . Allies Hacked . | . Hacks Repelled . | . Allies | -11 -------- Run | Yrd Total Allies . | . Largest Group . | . Highest-Rated Group . | . Highest-Rated Ally . | . Total Orders . | . Ally Attacks . | . Total Damage . | . Kills . | . Allies Corrupted . | . Allies Melted . | . Intel | -11 ------- Run | Yrd Robot Analysis Total . | . Derelict Logs Recovered . | . Drone Launches . | . Drone Recoveries . | . Exploration | -11 ------------- Run | Yrd Turns Passed 2531 | 2531 Spaces Moved 674 | 674 Core 25 | 25 Treads . | . Legs 649 | 649 Wheels . | . Hover . | . Flight . | . Fastest Speed 50 | 50 Average Speed 120 | 120 Slowest Speed 200 | 200 Overloaded Moves . | . Propulsion Burnouts . | . Robots Hopped . | . Cave-ins Triggered . | . Exploration Rate (%) 78 | 78 Regions Visited . Branch Regions . Pre-discovered Areas . | . Known Exits Taken . | . Unknown Exits Taken . | . Scrap Searched . | . Spaces Dug . | . Terrain Destroyed . | . Melee . | . Projectile . | . AOE . | . Terrain Rammed . | . Walls Destroyed . | . Machines Disabled . | . Actions | -11 --------- Run | Yrd Total 2362 | 2362 Wait 1655 | 1655 Move 674 | 674 Hop . | . Pick Up 9 | 9 Fast Attach 3 | 3 Attach 5 | 5 Detach 1 | 1 Swap . | . Drop . | . Fire 15 | 15 Melee . | . Ram . | . Kick . | . Crush . | . Escape Stasis . | . Rewire . | . Trap . | . Miscellaneous . | . Route ------- -11/Scrapyard (discovered 1 exit: [*Mat]) History --------- Turn | Location | Event 3 | -11/Scrapyard | Discovered new exit (range 15) 2501 | -11/Scrapyard | Assembled infested the area 2529 | -11/Scrapyard | Core integrity fell below 50% 2531 | -11/Scrapyard | Core integrity fell below 20% 2532 | -11/Scrapyard | Destroyed by as-69862 with Assembled Rifle Last Messages --------------- dispatching Demolisher response squad. 02509_ as-47677 destroyed. 02509_ Switching to secondary target: as-75633. 02512_ as-38162 destroyed. 02515_ as-99068 destroyed. 02515_ Switching to secondary target: as-75082. 02515_ as-75082 suffers critical hit (Destroy). 02515_ Destroyed Asb. Hover Unit. 02518_ as-75082 destroyed. 02520_ Knocked back. 02522_ Aluminum Leg destroyed. 02522_ Ion Engine destroyed. 02522_ System corrupted by crushing effect (+1). 02522_ Knocked back. 02523_ as-43150 suffers critical hit (Destroy). 02524_ Assault Rifle destroyed. 02528_ Assault Rifle severed. 02529_ Imp. Terrain Scanner destroyed. 02529_ Aluminum Leg destroyed. 02531_ as-95767 destroyed. Map ----- +----------------------------------------------------+ | | | | | | | | | ???????????????????????????#???? | | ???????????????????????????#???? | | ???????????????????????????????? | | ?????????????????????#??#??????? | | ??????????????????????#???##??#? | | ????????????????#??###????#??#?# | | ??????????????????????##???#???# | | ????????????????????? ?"??#????? | | ?????????#???????? ???????##?#? | | ?????????????#?#??????????#????? | | ??????????????????? "?? ?#???? | | ??????????????????? "????????##? | | ???????????????????? ?????#?#?#? | | ?????????????######## ?######### | | ??????????#### # ## # | | ??????????# #|%# # | | ??????????# # *# a # | | ??????????# % aaaa # | | ??????????# # #a a%% | | ??????????# # # a # | | ??????????# # # aa a## | | ??????????# # # @aa # | | ??????????########### # # | | ???????????????#?#??# # # | | ?#???????????????##?# # # | | ????????????????????# ######### | | ?#???????????????#### # # # | | ???#??????#########?# # # | | ??????????# ## # # | | ??????#?#?# # # # | | ?????????## # # # | | ?????#??#?# # | | ??#?????#?# # # # | | ?#???#??#?# # # # | | #??#?#???## # # # | | #?#????#??# # # # | | #??##?###?########### # ## | | ?#????##?#??###???#?# ########? | | ?????#?##??#?#?#?#?## ##?#????? | | ????#???????######### ######### | | ###?###??#### # # # | | ########### # # # | | ##??# # # # | | #?### # # # | | #??## # # # | | ##### # | +----------------------------------------------------+ Best States ------------- Heat Dissipation 25 Energy Generation 10 Energy Capacity 250 Matter Stores 300 Matter Capacity 300 Sight Range 16 Terrain Scan Range 16 Terrain Scan Density 10 Evasion (%) 55 Item Schematics ----------------- None Robot Schematics ------------------ None Fabricated ------------ Nothing Alien Tech Used ----------------- None Achievements -------------- None Challenges ------------ None Game ------ Seed MediumWeldingMatrix Manual? 0 Play Time 00:12:56 Cumulative 14.2 hours Start 2024.03.24 @ 20:36:42 End 2024.03.24 @ 20:44:07 Sessions 0 Manual Loads 0 Difficulty Rogue Special Mode None Game No. 41 Rogue 41 Adventurer 0 Explorer 0 Win Type - Total 0 Types 0/0/0/0/0/0/0/0/0 Lore% 14 Gallery% 20 Achievement% 15 Wizard Run 0 Options --------- Layout 1 ASCII 0 Keyboard 0 Movement Numpad Keybinds 0 Fullscreen 1 Font 24/Smallcaps Map View 50x35 Zoom Use 0% Tactical HUD 1 Map Filters NONE Filters NONE Steam 1 RUN: a3c80ea4-2da7-4d51-813f-6db91160f2c0